bitfinex-derivatives/quotes_ETHF0:USTF0_20240928
["timestamp","ask_amount","ask_price","bid_price","bid_amount"]
[1727517556785,2.13248,2671.1,2671.0,0.37429]
[1727517556985,3.71890526,2671.1,2671.0,0.37429]
[1727517557178,4.09318526,2671.1,2671.0,0.37429]
[1727517557382,2.13248,2671.1,2671.0,0.37429]
[1727517557593,1.7582,2671.1,2671.0,0.37429]
[1727517557784,2.13248,2671.1,2671.0,0.37429]
[1727517558294,1.7582,2671.1,2671.0,0.37429]
[1727517558486,3.29622771,2671.1,2671.0,0.37429]
[1727517559095,2.13248,2671.1,2671.0,0.37429]
[1727517559395,4.0944199,2671.1,2671.0,0.37429]
[1727517560482,1.7582,2671.1,2671.0,0.37429]
[1727517561895,2.13248,2671.1,2671.0,0.37429]
[1727517562083,1.7582,2671.1,2671.0,0.37429]
[1727517564289,5.75213445,2671.1,2671.0,0.37429]
[1727517564888,6.12641445,2671.1,2671.0,0.37429]
[1727517565091,4.58694488,2671.1,2671.0,0.37429]
[1727517565287,6.12641438,2671.1,2671.0,0.37429]
[1727517567490,3.6719495,2671.1,2671.0,0.37429]
[1727517568085,3.2976695,2671.1,2671.0,0.37429]
[1727517568288,1.9476695,2671.1,2671.0,0.37429]
[1727517570196,1.94834228,2671.1,2671.0,0.37429]
[1727517572492,2.32262228,2671.1,2671.0,0.37429]
[1727517572698,1.94834228,2671.1,2671.0,0.37429]
[1727517574394,4.40378254,2671.1,2671.0,0.37429]
[1727517574996,4.40390486,2671.1,2671.0,0.37429]
[1727517579793,2.86364026,2671.1,2671.0,0.37429]
[1727517579998,4.40400871,2671.1,2671.0,0.37429]
[1727517583800,4.77828871,2671.1,2671.0,0.37429]
[1727517584209,4.40400871,2671.1,2671.0,0.37429]
[1727517584801,4.40417258,2671.1,2671.0,0.37429]
[1727517585706,0.4082,2671.1,2671.0,0.37429]
[1727517586808,0.78248,2671.1,2671.0,0.37429]
[1727517587009,2.32294086,2671.1,2671.0,0.37429]
[1727517587211,0.4082,2671.1,2671.0,1.72429]
[1727517587412,6.44394026,2671.2,2671.1,0.37428]
[1727517587708,8.35864664,2671.2,2671.1,0.37428]
[1727517587909,8.35864664,2671.2,2671.1,0.75118]
[1727517588603,8.35864664,2671.2,2671.1,0.3769]
[1727517589624,5.90327766,2671.2,2671.1,0.3769]
[1727517590210,2.69547766,2671.2,2671.1,0.3769]
[1727517590515,2.69547766,2671.2,2671.1,0.75118]
[1727517591610,2.69547766,2671.2,2671.1,0.3769]
[1727517592005,2.69547766,2671.2,2671.1,0.75118]
[1727517592006,2.32121766,2671.2,2671.1,0.75118]
[1727517592201,2.69547766,2671.2,2671.1,0.75118]
[1727517594504,2.32121766,2671.2,2671.1,0.75118]
[1727517594707,2.69547766,2671.2,2671.1,0.75118]
[1727517596418,2.69547766,2671.2,2671.1,0.3769]
[1727517597109,2.69547766,2671.2,2671.1,0.75118]
[1727517597309,4.77741946,2671.2,2671.1,0.75118]
[1727517597516,4.37511946,2671.2,2671.1,0.75118]
[1727517600506,4.74937946,2671.2,2671.1,0.75118]
[1727517600908,4.74937946,2671.2,2671.1,0.3769]
[1727517601111,0.37429,2671.0,2670.8,0.97293578]
[1727517601317,0.754,2670.9,2670.8,1.34724578]
[1727517602307,1.96485339,2671.0,2670.9,0.37431]
[1727517603113,1.47361672,2671.0,2670.9,10.56663259]
[1727517603319,1.47361672,2671.1,2671.0,0.37429]
[1727517603518,1.47361672,2671.1,2671.0,4.18898152]
[1727517603720,1.47361672,2671.1,2671.0,11.09153137]
[1727517604114,1.47361672,2671.1,2671.0,12.55042551]
[1727517604411,1.47361672,2671.2,2671.1,0.37428]
[1727517604715,1.96485339,2671.2,2671.1,0.37428]
[1727517605219,2.83032674,2671.3,2671.1,0.37428]
[1727517605408,2.33831014,2671.2,2671.1,0.37428]
[1727517605609,1.96403857,2671.2,2671.1,0.37428]
[1727517605820,2.83032674,2671.3,2671.1,0.37428]
[1727517606612,0.37428,2671.1,2670.9,0.97267715]
[1727517606818,0.37432,2670.9,2670.7,0.78063]
[1727517607020,1.96416602,2670.8,2670.7,0.4063]
[1727517607208,1.96416602,2670.8,2670.7,0.78063]
[1727517607415,2.33848602,2670.8,2670.7,0.4063]
[1727517607616,2.33848602,2670.8,2670.6,1.72435]
[1727517607814,2.33848602,2670.8,2670.6,1.35]
[1727517607815,0.3916,2670.7,2670.6,1.35]
[1727517608333,0.3916,2670.7,2670.6,1.72435]
[1727517608524,0.76594,2670.7,2670.5,1.36737715]
[1727517608725,0.77806,2670.6,2670.4,0.37437]
[1727517608923,3.69157745,2670.5,2670.2,1.36737715]
[1727517609222,1.96437745,2670.3,2670.2,0.76909]
[1727517609530,2.35541617,2670.4,2670.3,0.37439]
[1727517609717,2.35536006,2670.4,2670.3,0.37439]
[1727517609919,0.3916,2670.4,2670.3,0.37439]
[1727517610117,0.76598,2670.4,2670.2,0.7691]
[1727517610318,3.7053681,2670.4,2670.0,0.37443]
[1727517610513,3.7053681,2670.4,2669.9,0.97267715]
[1727517610514,2.3381781,2670.2,2669.9,1.7447]
[1727517610714,2.3381781,2670.2,2669.9,2.11914]
[1727517610715,1.87923793,2670.1,2669.9,2.11914]
[1727517610921,1.84703793,2670.0,2669.9,2.11914]
[1727517611125,2.22903793,2670.0,2669.9,2.11914]
[1727517611313,1.35577583,2670.0,2669.9,2.11914]
[1727517611519,0.3745,2670.0,2669.9,2.11914]
[1727517611714,0.3745,2670.0,2669.9,3.09181715]
[1727517612316,0.3745,2670.0,2669.9,2.11914]
[1727517613929,0.3745,2670.0,2669.9,0.3947]
[1727517614124,0.3745,2670.0,2669.8,0.37446]
[1727517614314,0.394,2669.9,2669.7,0.37447]
[1727517614514,0.394,2669.9,2669.6,2.7241]
[1727517614515,0.394,2669.9,2669.8,0.37446]
[1727517615021,1.37527583,2669.9,2669.7,0.37447]
[1727517615320,1.37527583,2669.9,2669.6,2.7241]
[1727517615321,0.394,2669.9,2669.8,0.37446]
[1727517615521,0.394,2669.9,2669.7,0.37447]
[1727517615724,1.74972583,2669.9,2669.7,0.37447]
[1727517616121,1.74972583,2669.9,2669.7,0.37448]
[1727517616318,1.35,2669.8,2669.3,4.18047715]
[1727517616528,1.35,2669.5,2669.3,0.37452]
[1727517616719,1.1454,2669.4,2669.3,0.37452]
[1727517618133,0.98127583,2669.5,2669.4,0.37452]
[1727517618433,0.98127583,2669.5,2669.4,0.75922]
[1727517621335,0.98127583,2669.5,2669.3,0.37452]
[1727517621526,0.7869,2669.4,2669.3,0.37452]
[1727517622327,0.7869,2669.4,2669.3,1.72452]
[1727517622828,0.4037,2669.4,2669.3,1.72452]
[1727517623035,1.7367,2669.6,2669.5,0.3745]
[1727517623334,0.7706,2669.6,2669.5,0.3745]
[1727517623634,0.7706,2669.6,2669.4,0.37451]
[1727517624128,0.7706,2669.6,2669.5,0.3745]
[1727517624335,1.14509,2669.6,2669.3,1.35]
[1727517624530,0.7706,2669.6,2669.3,1.35]
[1727517624833,0.7706,2669.6,2669.4,0.37452]
[1727517625134,0.7706,2669.6,2669.5,0.3745]
[1727517625835,2.1206,2669.6,2669.1,0.4041]
[1727517626136,1.35,2669.4,2669.3,0.37453]
[1727517626323,1.35,2669.4,2669.2,0.37454]
[1727517626529,0.4039,2669.3,2669.2,0.37454]
[1727517626727,0.4039,2669.3,2669.2,0.37455]
[1727517627227,0.4039,2669.3,2669.2,1.72455]
[1727517628128,0.7706,2669.6,2669.2,1.35]
[1727517628333,0.7706,2669.6,2669.5,0.3745]
[1727517628735,0.7706,2669.6,2669.4,0.37451]
[1727517629030,0.4039,2669.5,2669.4,0.37451]
[1727517633640,0.7784,2669.5,2669.3,0.77562]
[1727517633931,1.35,2669.4,2669.3,0.37453]
[1727517634326,1.72452,2669.4,2669.2,0.37454]
[1727517634531,0.3706,2669.3,2669.2,0.37454]
[1727517640228,1.7539,2669.5,2669.4,0.37452]
[1727517641029,0.4039,2669.5,2669.4,0.37452]
[1727517641430,0.4039,2669.5,2669.4,0.74882]
[1727517653445,1.38517583,2669.5,2669.4,0.74882]
[1727517654146,0.4039,2669.5,2669.4,0.74882]
[1727517654340,1.38517583,2669.5,2669.4,0.74882]
[1727517655443,1.87643793,2669.5,2669.4,0.74882]
[1727517655842,1.38462811,2669.5,2669.4,0.74882]
[1727517656036,0.4039,2669.5,2669.4,0.74882]
[1727517656338,1.87643793,2669.5,2669.4,0.74882]
[1727517656934,0.4039,2669.5,2669.4,0.74882]
[1727517658147,1.94538878,2669.5,2669.4,0.74882]
[1727517658447,4.40199524,2669.5,2669.4,0.74882]
[1727517658850,2.45606674,2669.6,2669.5,0.3745]
[1727517659049,3.99803143,2669.6,2669.5,0.3745]
[1727517660845,1.54196469,2669.6,2669.5,0.3745]
[1727517661045,2.31675469,2669.6,2669.5,0.3745]
[1727517661237,3.66675469,2669.6,2669.4,0.74881]
[1727517661445,1.7503,2669.6,2669.5,0.3745]
[1727517661639,3.29376053,2669.6,2669.5,0.3745]
[1727517662955,0.3745,2669.5,2669.3,0.37453]
[1727517663153,1.94926053,2669.4,2669.3,0.37453]
[1727517663654,2.86269284,2669.4,2669.3,0.37453]
[1727517663856,4.40612367,2669.4,2669.3,0.37453]
[1727517664051,4.00029572,2669.4,2669.3,0.37453]
[1727517664450,2.45683519,2669.4,2669.3,0.76903]
[1727517664650,4.0005941,2669.4,2669.3,0.76903]
[1727517664943,3.50922253,2669.5,2669.3,0.3945]
[1727517665145,1.96546362,2669.5,2669.4,1.72452]
[1727517665349,0.98271049,2669.6,2669.4,21.77593561]
[1727517665547,1.47406574,2669.8,2669.5,6.64140516]
[1727517665742,1.47406574,2669.8,2669.7,0.37448]
[1727517665743,0.98239169,2669.8,2669.7,0.37448]
[1727517665940,0.98239169,2669.8,2669.7,1.46574819]
[1727517666140,1.47406574,2669.8,2669.7,0.9740708]
[1727517666344,1.47406574,2669.8,2669.7,0.37448]
[1727517666544,1.47406574,2669.8,2669.6,1.9410708]
[1727517666545,1.47319186,2669.8,2669.6,1.9410708]
[1727517666741,0.98213499,2669.7,2669.6,2.3155608]
[1727517666943,0.98213499,2669.7,2669.6,3.39404866]
[1727517667155,0.98213499,2669.7,2669.6,11.33226054]
[1727517667546,0.98213499,2669.7,2669.6,0.37449]
[1727517667852,0.98213499,2669.7,2669.5,1.3682708]
[1727517667853,3.31546362,2669.7,2669.5,0.7687]
[1727517668048,2.25784471,2669.6,2669.5,0.7687]
[1727517668246,0.7847,2669.6,2669.4,0.37451]
[1727517668554,1.47313227,2669.5,2669.4,0.37451]
[1727517669646,4.10016362,2669.6,2669.5,0.3745]
[1727517669849,2.1347,2669.6,2669.5,0.3745]
[1727517670249,4.09888988,2669.6,2669.5,0.3745]
[1727517670457,2.74888988,2669.6,2669.5,0.3745]
[1727517674756,0.37451,2669.5,2669.3,0.3854]
[1727517675061,3.31433538,2669.4,2669.1,0.37455]
[1727517675256,3.31433538,2669.2,2669.1,0.37455]
[1727517675450,3.31433538,2669.3,2669.2,0.37455]
[1727517675761,3.71943538,2669.3,2669.2,0.37455]
[1727517676165,4.09397538,2669.3,2669.1,0.37455]
[1727517676364,1.47321781,2669.2,2669.1,0.37456]
[1727517676573,4.09397538,2669.3,2669.1,0.37456]
[1727517676955,6.92723538,2669.3,2669.0,0.3826]
[1727517677156,1.47328419,2669.1,2669.0,0.75717]
[1727517679056,1.47328419,2669.1,2668.8,2.6945708]
[1727517679057,1.47328419,2669.1,2668.8,2.3240708]
[1727517679257,0.3722,2669.0,2668.9,0.37459]
[1727517679459,1.3541387,2669.0,2668.9,0.37459]
[1727517680859,0.37459,2668.9,2668.6,0.9740708]
[1727517681064,1.35,2668.7,2668.6,0.37462]
[1727517681366,2.33174751,2668.7,2668.6,0.37462]
[1727517681563,2.72654751,2668.7,2668.6,0.37462]
[1727517682070,3.2177106,2668.7,2668.5,4.7074771]
[1727517682259,1.4729106,2668.6,2668.5,4.7074771]
[1727517682454,0.9814485,2668.6,2668.5,4.7074771]
[1727517682659,3.2177106,2668.7,2668.5,4.7074771]
[1727517682856,1.4729106,2668.6,2668.5,4.7074771]
[1727517683259,1.4729106,2668.6,2668.5,4.3328371]
[1727517683455,4.08376538,2668.7,2668.5,4.3328371]
[1727517683665,0.37463,2668.6,2668.5,4.3328371]
[1727517684260,3.29463,2668.6,2668.5,4.3328371]
[1727517684464,0.37466,2668.4,2668.2,0.76598]
[1727517684660,0.7551,2668.3,2668.2,0.37468]
[1727517684859,1.73583777,2668.3,2668.2,0.37468]
[1727517685064,0.7551,2668.3,2668.2,0.37468]
[1727517685263,1.73583777,2668.3,2668.1,0.3747]
[1727517685674,1.73583777,2668.3,2668.2,0.37469]
[1727517685864,0.37465,2668.5,2668.4,0.37466]
[1727517685865,0.98073777,2668.5,2668.4,0.37466]
[1727517686369,1.34927582,2668.6,2668.5,0.37464]
[1727517686565,5.09647582,2668.6,2668.5,0.37464]
[1727517687464,1.34927582,2668.6,2668.5,0.37464]
[1727517688565,3.2078,2668.7,2668.6,0.37463]
[1727517688765,0.97944084,2668.9,2668.8,0.3746]
[1727517688971,0.97944084,2669.1,2669.0,0.37457]
[1727517689972,0.97944084,2669.1,2668.6,5.49971875]
[1727517689973,1.38634084,2669.2,2669.1,0.37456]
[1727517690272,1.38634084,2669.2,2668.6,5.49971875]
[1727517690273,0.37458,2669.0,2668.6,4.56313875]
[1727517690468,0.37458,2669.0,2668.9,0.37459]
[1727517690469,4.18705824,2669.0,2668.9,0.37459]
[1727517691168,4.57285824,2669.0,2668.9,0.37459]
[1727517693275,0.3858,2669.0,2668.9,0.37459]
[1727517694270,1.36505824,2669.0,2668.9,0.37459]
[1727517694675,0.3858,2669.0,2668.9,0.37459]
[1727517694979,1.36505824,2669.0,2668.9,0.37459]
[1727517695472,0.3858,2669.0,2668.9,0.37459]
[1727517697083,0.97895724,2669.2,2669.1,0.37456]
[1727517697282,1.35350724,2669.2,2669.1,0.37456]
[1727517698173,1.35350724,2669.2,2669.0,0.37456]
[1727517698380,1.35350724,2669.2,2669.1,0.3878]
[1727517700376,1.35350724,2669.2,2669.1,0.76236]
[1727517700770,1.35350724,2669.2,2669.1,0.3878]
[1727517700973,1.35350724,2669.2,2669.1,0.76236]
[1727517701373,1.35350724,2669.2,2669.1,0.3878]
[1727517702981,1.35350724,2669.2,2669.1,0.76236]
[1727517704183,1.35350724,2669.2,2669.1,0.3878]
[1727517705481,0.97895724,2669.2,2669.1,0.76236]
[1727517705679,7.48129724,2669.3,2669.1,0.76236]
[1727517705883,1.35350724,2669.2,2669.1,0.76236]
[1727517706186,2.70350724,2669.2,2669.1,0.76236]
[1727517706486,2.32895724,2669.2,2669.1,0.76236]
[1727517707382,2.70350724,2669.2,2669.1,0.76236]
[1727517709487,2.70350724,2669.2,2669.1,0.3878]
[1727517709488,3.19565666,2669.2,2669.1,0.3878]
[1727517709784,1.47110666,2669.2,2669.1,0.76236]
[1727517709986,0.97926842,2669.2,2669.1,6.79517]
[1727517710187,0.97926842,2669.4,2669.2,0.37455]
[1727517710380,0.97926842,2669.4,2669.3,1.18093]
[1727517710580,0.97926842,2669.5,2669.4,0.37452]
[1727517713589,1.47110666,2669.6,2669.5,0.3745]
[1727517715488,1.46984212,2669.6,2669.5,0.3745]
[1727517716298,2.35523538,2669.7,2669.6,0.37449]
[1727517716796,2.35523538,2669.7,2669.5,0.3745]
[1727517717097,1.46987191,2669.6,2669.5,0.3745]
[1727517717298,2.35523538,2669.7,2669.6,0.37449]
[1727517717495,1.86073037,2669.7,2669.6,0.37449]
[1727517717798,1.86073037,2669.7,2669.4,0.37452]
[1727517717799,0.76538,2669.7,2669.4,0.37452]
[1727517718096,0.97996989,2669.5,2669.4,0.37452]
[1727517718492,1.35466989,2669.5,2669.4,0.37452]
[1727517720000,1.35466989,2669.5,2669.3,0.37452]
[1727517720001,1.84465484,2669.5,2669.3,0.37452]
[1727517720201,0.98006897,2669.4,2669.3,0.37452]
[1727517720593,4.76447484,2669.4,2669.2,0.37454]
[1727517720789,1.35416833,2669.3,2669.2,0.37454]
[1727517721001,0.98016833,2669.3,2669.2,0.37454]
[1727517721502,2.21916484,2669.5,2669.3,0.37453]
[1727517721503,0.98016833,2669.4,2669.3,0.37453]
[1727517721894,1.84465484,2669.5,2669.4,0.37452]
[1727517721895,1.35486833,2669.5,2669.4,0.37452]
[1727517722095,1.37087122,2669.7,2669.6,0.37449]
[1727517722496,0.3909,2669.7,2669.6,0.37449]
[1727517723592,0.97997122,2669.9,2669.8,0.37446]
[1727517725206,1.37897122,2670.0,2669.9,0.37445]
[1727517727510,0.399,2670.0,2669.9,0.37445]
[1727517728206,1.37897122,2670.0,2669.9,0.37445]
[1727517728501,0.399,2670.0,2669.9,0.37445]
[1727517728804,0.97997122,2670.3,2670.2,0.37441]
[1727517729001,0.7738,2670.3,2670.2,0.37441]
[1727517729697,0.3859,2670.3,2670.2,0.37441]
[1727517733301,0.3859,2670.3,2670.1,0.37441]
[1727517733501,0.3859,2670.3,2670.0,0.4066]
[1727517733502,1.84157813,2670.2,2670.0,0.4066]
[1727517733709,1.46718863,2670.1,2670.0,0.78103]
[1727517734008,2.22129863,2670.2,2670.0,0.78103]
[1727517734208,1.46718863,2670.1,2670.0,0.78103]
[1727517734604,1.84160863,2670.1,2670.0,0.4066]
[1727517734811,1.96433538,2670.1,2669.6,0.965]
[1727517735007,1.96433538,2670.1,2669.6,1.73109]
[1727517735008,0.97826223,2669.7,2669.6,1.73109]
[1727517735210,0.97826223,2669.8,2669.7,0.37448]
[1727517735405,0.97821649,2669.8,2669.7,0.37448]
[1727517737707,1.46739334,2669.9,2669.8,0.37446]
[1727517738205,1.95652446,2670.0,2669.9,0.37445]
[1727517739505,2.83126519,2670.1,2669.9,0.37445]
[1727517739506,0.37443,2670.1,2669.9,0.37445]
[1727517740713,3.46321948,2670.2,2670.0,0.37443]
[1727517741019,2.48481,2670.2,2670.0,0.37443]
[1727517741211,3.46321948,2670.2,2670.0,0.37443]
[1727517741513,2.48481,2670.2,2670.0,0.37443]
[1727517741714,3.46321948,2670.2,2670.0,0.37443]
[1727517742211,2.11321948,2670.2,2669.9,1.35]
[1727517742405,2.11321948,2670.2,2670.0,0.37442]
[1727517742607,2.11321948,2670.2,2670.1,0.37442]
[1727517743910,0.37442,2670.1,2670.0,0.76033]
[1727517745408,0.37442,2670.1,2670.0,0.3859]
[1727517745613,0.37442,2670.1,2669.9,0.37444]
[1727517745614,0.37443,2670.0,2669.9,0.37444]
[1727517746005,2.70283948,2670.1,2669.9,0.37444]
[1727517746205,0.37446,2669.9,2669.7,0.3891]
[1727517746402,0.3869,2669.8,2669.7,0.3891]
[1727517746613,1.17046,2669.8,2669.7,0.76356]
[1727517746809,0.796,2669.8,2669.4,1.35]
[1727517747017,0.77088,2669.7,2669.5,0.3891]
[1727517747218,0.77088,2669.7,2669.5,0.37449]
[1727517747520,1.37480948,2669.7,2669.6,0.37449]
[1727517747706,1.37480948,2669.7,2669.3,0.3891]
[1727517747707,1.74928948,2669.7,2669.5,0.37449]
[1727517748314,1.74928948,2669.7,2669.3,0.3891]
[1727517748315,0.37451,2669.5,2669.3,0.3891]
[1727517748520,1.35291948,2669.5,2669.3,0.76362]
[1727517748714,0.4063,2669.4,2669.3,0.76362]
[1727517749218,0.78082,2669.4,2669.2,3.58234]
[1727517749408,0.3693,2669.3,2669.2,3.58234]
[1727517750713,1.34770948,2669.3,2669.2,3.58234]
[1727517751721,1.72223948,2669.3,2669.2,3.2078]
[1727517752112,0.74383,2669.3,2669.2,3.2078]
[1727517752314,2.21144422,2669.3,2669.2,3.2078]
[1727517752811,5.13144422,2669.3,2669.2,3.2078]
[1727517753011,3.66383,2669.3,2669.2,3.2078]
[1727517754317,4.60017,2669.3,2669.2,3.2078]
[1727517754517,8.34657,2669.3,2669.2,3.2078]
[1727517754727,9.81655781,2669.3,2669.2,3.2078]
[1727517755024,0.37459,2668.9,2668.8,0.7776]
[1727517755419,0.9800612,2668.9,2668.4,0.3744]
[1727517755621,0.9800612,2668.9,2668.6,0.37462]
[1727517755622,2.1196712,2668.8,2668.6,0.37462]
[1727517755815,0.3909,2668.7,2668.6,0.37462]
[1727517756820,0.76552,2668.7,2668.6,0.37462]
[1727517757023,0.37463,2668.6,2668.5,0.37464]
[1727517757419,0.37463,2668.6,2668.2,0.3752]
[1727517757420,0.37463,2668.6,2668.4,0.37465]
[1727517757730,4.6655812,2668.7,2668.5,0.37464]
[1727517758325,0.37463,2668.6,2668.5,0.37464]
[1727517759458,0.37463,2668.6,2668.4,0.37465]
[1727517759619,0.37464,2668.5,2668.3,3.2078]
[1727517759926,3.3109,2668.7,2668.5,0.37464]
[1727517759927,3.2078,2668.6,2668.5,0.37464]
[1727517760128,1.7637812,2668.7,2668.5,0.37464]
[1727517760516,0.78372,2668.7,2668.5,0.37464]
[1727517761124,0.37463,2668.6,2668.5,0.37464]
[1727517761517,0.4091,2668.7,2668.5,0.37464]
[1727517761821,0.78372,2668.7,2668.5,0.37464]
[1727517762022,0.78372,2668.7,2668.6,0.3918]
[1727517762225,0.78372,2668.7,2668.6,0.76643]
[1727517762427,0.4091,2668.7,2668.6,0.76643]
[1727517763626,0.76181,2668.8,2668.6,0.76642]
[1727517763831,0.3872,2668.8,2668.7,0.37462]
[1727517768129,0.7618,2668.8,2668.7,0.37462]
[1727517768324,3.2078,2668.9,2668.8,0.3746]
[1727517768524,0.37457,2669.1,2668.9,0.37458]
[1727517768830,0.37457,2669.1,2669.0,0.4086]
[1727517774838,0.77655,2669.2,2669.1,0.37456]
[1727517775639,0.37456,2669.1,2669.0,0.78317]
[1727517776444,0.37456,2669.1,2669.0,0.4086]
[1727517777041,0.77655,2669.2,2669.0,0.78317]
[1727517777741,0.37456,2669.1,2669.0,0.78317]
[1727517777932,0.77656,2669.2,2669.0,0.78317]
[1727517779438,0.37456,2669.1,2669.0,0.78317]
[1727517779734,0.402,2669.2,2669.0,0.78317]
[1727517780336,0.77655,2669.2,2669.0,0.78317]
[1727517782136,0.402,2669.2,2669.0,0.78317]
[1727517782341,0.402,2669.2,2669.0,0.4086]
[1727517782541,0.77655,2669.2,2669.0,0.78317]
[1727517783934,1.35,2669.1,2669.0,0.37457]
[1727517784535,1.35,2669.1,2668.8,0.3907]
[1727517784734,1.35,2669.1,2669.0,0.37457]
[1727517785142,0.37458,2669.0,2668.8,0.37459]
[1727517785437,0.37458,2669.0,2668.7,0.3825]
[1727517785438,1.35,2669.1,2668.9,0.37459]
[1727517786036,0.3754,2669.0,2668.9,0.37459]
[1727517786445,0.74997,2669.0,2668.9,0.37459]
[1727517786839,0.3754,2669.0,2668.9,0.37459]
[1727517789243,0.3754,2669.0,2668.7,1.7325]
[1727517789443,0.3754,2669.0,2668.9,0.37459]
[1727517790339,0.3754,2669.0,2668.8,0.37459]
[1727517790340,0.74998,2669.0,2668.8,0.37459]
[1727517790539,0.3754,2669.0,2668.8,0.3746]
[1727517790842,0.3754,2669.0,2668.9,0.37459]
[1727517791648,0.74998,2669.0,2668.8,0.37459]
[1727517791844,0.74998,2669.0,2668.7,0.3825]
[1727517791845,0.3754,2669.0,2668.9,0.37459]
[1727517792434,0.3754,2669.0,2668.8,0.37459]
[1727517792435,4.93545675,2669.0,2668.8,0.37459]
[1727517792741,4.56088675,2669.0,2668.8,0.37459]
[1727517793344,4.93545675,2669.0,2668.8,0.37459]
[1727517793545,4.56088675,2669.0,2668.8,0.3746]
[1727517793849,4.93546675,2669.0,2668.8,0.3746]
[1727517794947,4.93546675,2669.0,2668.7,0.3825]
[1727517795139,4.93546675,2669.0,2668.9,0.37459]
[1727517796136,3.95778,2669.0,2668.9,0.37459]
[1727517796540,0.3746,2668.9,2668.7,0.37461]
[1727517796842,1.35479533,2668.8,2668.7,0.37461]
[1727517797448,1.84103013,2668.8,2668.7,0.37461]
[1727517798343,1.35510174,2668.8,2668.7,0.37461]
[1727517798542,1.84103013,2668.8,2668.7,0.37461]
[1727517798747,1.35538138,2668.8,2668.7,2.66116]
[1727517799047,1.35538138,2668.8,2668.7,2.28655]
[1727517799048,0.9808547,2668.8,2668.7,2.28655]
[1727517799246,0.9808547,2668.8,2668.7,2.66117]
[1727517799448,1.84193013,2669.0,2668.8,0.3746]
[1727517799449,1.46653013,2668.9,2668.8,0.3746]
[1727517800442,1.95537351,2668.9,2668.8,0.3746]
[1727517801554,2.44421688,2669.0,2668.9,0.37459]
[1727517802246,4.03715945,2669.0,2668.9,0.37459]
[1727517803050,2.44421688,2669.0,2668.9,0.37459]
[1727517803355,1.12016,2669.1,2669.0,0.37457]
[1727517803755,1.12016,2669.1,2668.9,0.37458]
[1727517804450,0.37457,2669.0,2668.7,1.35]
[1727517804647,0.37457,2669.0,2668.8,0.37459]
[1727517804648,0.37459,2668.9,2668.8,0.37459]
[1727517804949,0.37459,2668.9,2668.6,1.7248]
[1727517805149,0.7539,2668.8,2668.7,0.37461]
[1727517806852,2.1039,2668.8,2668.3,4.1718]
[1727517807057,0.4046,2668.7,2668.6,0.37463]
[1727517807253,0.77922,2668.7,2668.6,0.37463]
[1727517807658,0.37463,2668.6,2668.5,0.37464]
[1727517808055,0.77922,2668.7,2668.3,4.5578]
[1727517808753,0.77922,2668.7,2668.5,0.37464]
[1727517808955,0.77922,2668.7,2668.6,0.37463]
[1727517810360,0.37463,2668.6,2668.5,0.37464]
[1727517811249,0.37464,2668.5,2668.4,0.37465]
[1727517811856,0.37464,2668.5,2668.3,1.35]
[1727517811857,0.37464,2668.6,2668.3,1.35]
[1727517812057,0.37464,2668.6,2668.4,0.37465]
[1727517812872,4.9624,2668.7,2668.4,0.37465]
[1727517813057,1.35,2668.5,2668.2,0.37468]
[1727517813264,0.37468,2668.3,2668.1,0.76899]
[1727517813455,0.3976,2668.2,2668.1,0.76899]
[1727517814064,0.77229,2668.2,2668.1,0.76899]
[1727517814465,0.3976,2668.2,2668.1,0.76899]
[1727517815261,0.77229,2668.2,2668.1,0.76899]
[1727517815866,0.3976,2668.2,2668.1,0.76899]
[1727517817067,0.77229,2668.2,2668.0,3.58251]
[1727517817263,0.3976,2668.2,2668.1,0.3747]
[1727517817970,0.77229,2668.2,2668.0,4.9325]
[1727517818166,0.3976,2668.2,2668.1,0.3747]
[1727517819367,0.77229,2668.2,2668.1,0.3747]
[1727517819970,2.12229,2668.2,2668.0,3.58251]
[1727517820172,1.7476,2668.2,2668.0,3.58251]
[1727517820774,2.12229,2668.2,2668.0,3.58251]
[1727517821070,2.12229,2668.2,2668.1,0.3747]
[1727517821263,2.12229,2668.2,2668.0,3.5825]
[1727517822769,2.12229,2668.2,2668.1,0.3747]
[1727517822959,0.3976,2668.2,2668.1,0.3747]
[1727517823165,0.8124,2668.4,2668.3,0.37467]
[1727517825076,0.74504,2668.6,2668.5,0.37464]
[1727517825274,0.3704,2668.6,2668.5,1.72464]
[1727517825667,0.74503,2668.6,2668.5,1.72464]
[1727517826174,0.3704,2668.6,2668.5,1.72464]
[1727517826373,0.74503,2668.6,2668.5,1.72464]
[1727517827169,0.3704,2668.6,2668.5,1.72464]
[1727517827475,3.2078,2668.7,2668.6,0.37463]
[1727517827675,3.2078,2668.7,2668.6,0.74463]
[1727517828170,3.2078,2668.7,2668.6,2.09463]
[1727517828374,3.2078,2668.7,2668.6,5.84183]
[1727517830176,3.2078,2668.7,2668.6,2.09463]
[1727517830365,3.2078,2668.7,2668.6,5.84183]
[1727517830565,3.2078,2668.7,2668.6,2.09463]
[1727517830773,3.2078,2668.7,2668.6,5.84183]
[1727517831778,3.2078,2668.7,2668.6,2.09463]
[1727517831979,3.2078,2668.7,2668.6,0.37]
[1727517832181,3.58242,2668.7,2668.6,0.37]
[1727517832379,3.2078,2668.7,2668.6,0.37463]
[1727517832575,3.2078,2668.7,2668.5,0.37464]
[1727517832879,0.3999,2668.6,2668.5,0.37464]
[1727517836179,0.3999,2668.6,2668.5,1.72464]
[1727517836380,3.2078,2668.7,2668.6,0.37463]
[1727517837284,3.58242,2668.7,2668.6,0.37463]
[1727517839488,0.37462,2668.7,2668.6,0.37463]
[1727517840990,4.0075,2668.9,2668.5,1.72464]
[1727517841289,4.0075,2668.9,2668.5,1.35]
[1727517842184,0.37462,2668.7,2668.5,1.35]
[1727517842394,0.37462,2668.7,2668.6,0.37463]
[1727517842878,0.37463,2668.6,2668.5,1.72463]